Cogmind - Beta 16 @@@ ROGUE MODE // 2026.02.04 @ 21:57:02 Player: eb Result: Destroyed by H-77 Assassin with Coil Gun Performance ------------- Evolutions (7) 3500 Regions Visited (10) 2000 Robots Destroyed (60) 300 Value Destroyed (2361) 2361 Prototype IDs (21) 420 Alien Tech Used (0) 0 Bonus (1682) 1682 TOTAL SCORE: 10263 Bonus ------- High Alert Combat Kills 311 Follower Combat Kills 89 Registered with UFD 300 Met Optimus in HQ 500 Scanned by Researcher 500 Friendly Fire -18 Cogmind --------- Core Integrity 0/1300 Matter 106/300 Energy 100/100 System Corruption 5% Temperature Cool (0) Movement Core (50) Location -3/Testing Parts ------- > --- POWER (2) -------- (None) > --- PROPULSION (5) --- (None) > --- UTILITY (8) ------ Enhanced Optical Array Advanced Terrain Scan Processor Core Analyzer > --- WEAPON (6) ------- (None) > --- INVENTORY (5) ---- Advanced Thermal Defense Suite Peak State ------------ > --- POWER ------------ Light Deuterium Engine Improved Fusion Compressor > --- PROPULSION ------- VTOL Module VTOL Module Xenon Bombardment Thruster Makeshift Flight Unit Impulse Thruster > --- UTILITY ---------- Advanced Power Amplifier Enhanced Optical Array Advanced Terrain Scan Processor Advanced Melee Analysis Suite Core Analyzer Improved Transmission Jammer Improved Focal Shield Improved Hacking Suite > --- WEAPON ----------- Matter Neutralizer > --- INVENTORY -------- Transmission Jammer Improved Focal Shield Advanced Thermal Defense Suite Advanced Thermal Defense Suite Improved Recalibrator [Rating: 81] Favorites ----------- Power Ion Engine Engine Ion Engine Power Core Light Fission Core Reactor Light Particle Reactor Propulsion Light Treads Treads Light Treads Wheel Armored Huge Wheel Flight Unit Makeshift Flight Unit Utility Light Humpback Device Structural Scanner Storage Light Humpback Processor Core Analyzer Hackware Improved Hacking Suite Protection Improved Medium Armor Plating Weapon Assault Rifle Energy Gun Heavy Laser Energy Cannon Matter Neutralizer Ballistic Gun Assault Rifle Ballistic Cannon Mass Driver Launcher Rocket Launcher Special Weapon Junk Cannon Impact Weapon Power Maul Slashing Weapon Great Axe Build | -11 -10 -10 -10 -7 -5 -4 -4 -4 -3 -3 ------- Run | Yrd Mat Min Sub Scr Fac Fac Upp Upp Res Tes Slots Evolved 14 | . . . . . 10 2 . . 2 . Power 1 | . . . . . . 1 . . . . Propulsion 3 | . . . . . . 1 . . 2 . Utility 6 | . . . . . 6 . . . . . Weapon 4 | . . . . . 4 . . . . . Parts Attached 73 | 6 5 2 2 8 19 13 2 . 8 8 Power 7 | 1 . 1 . 1 1 1 . . 2 . Engine 4 | 1 . 1 . 1 . 1 . . . . Core 2 | . . . . . 1 . . . 1 . Reactor 1 | . . . . . . . . . 1 . Propulsion 13 | 2 . 1 . 3 . 4 . . 3 . Treads 3 | 2 . 1 . . . . . . . . Leg . | . . . . . . . . . . . Wheel 3 | . . . . 3 . . . . . . Hover . | . . . . . . . . . . . Flight 7 | . . . . . . 4 . . 3 . Utility 33 | 1 2 . 1 1 12 6 2 . 3 5 Device 16 | . 1 . . . 5 3 . . 2 5 Storage 4 | 1 1 . . 1 . 1 . . . . Processor 7 | . . . . . 3 2 2 . . . Hackware 1 | . . . . . . . . . 1 . Protection 5 | . . . 1 . 4 . . . . . Artifact . | . . . . . . . . . . . Weapon 20 | 2 3 . 1 3 6 2 . . . 3 Energy Gun 1 | . . . . . 1 . . . . . Energy Cannon 3 | . . . . . . 2 . . . 1 Ballistic Gun 4 | 2 1 . 1 . . . . . . . Ballistic Cannon 3 | . . . . 1 2 . . . . . Launcher 4 | . 1 . . . 1 . . . . 2 Special Weapon 1 | . . . . 1 . . . . . . Impact Weapon 3 | . 1 . . 1 1 . . . . . Slashing Weapon 1 | . . . . . 1 . . . . . Piercing Weapon . | . . . . . . . . . . . Special Melee Weapon . | . . . . . . . . . . . Unidentified Prototypes 5 | . . . . 1 . . . . 1 3 Parts Lost 25 | . . . 1 . 6 1 . . 8 9 Power 2 | . . . . . . . . . 1 1 Propulsion 7 | . . . . . . 1 . . 4 2 Utility 11 | . . . 1 . 3 . . . 3 4 Weapon 5 | . . . . . 3 . . . . 2 Highest Loss Streak 9 | . . . 1 . 6 1 . . 8 9 To Critical Strikes 1 | . . . . . 1 . . . . . Average Backups 10 | 2 8 12 13 13 13 3 4 5 4 2 Power 1 | . 1 1 1 . 2 . 1 1 . . Propulsion 3 | 1 2 3 5 3 3 1 2 2 . . Utility 3 | . . 1 1 4 4 . 1 2 3 1 Weapon 3 | . 4 5 4 3 2 . . . . . Tool/Special . | . . . . . . . . . . . Unused Backups 24 | . . 1 2 8 9 3 . . 1 . Power 2 | . . . . 1 1 . . . . . Propulsion 4 | . . . . 3 1 . . . . . Utility 8 | . . . . 2 5 . . . 1 . Weapon 9 | . . 1 2 1 2 3 . . . . Tool/Special 1 | . . . . 1 . . . . . . Average Slot Usage (%) 82 | . 93 100 99 81 86 43 55 63 68 24 Engine 9 | . 14 14 14 14 3 4 5 5 3 . Treads 8 | . 28 28 28 . . . . . . . Wheel 8 | . . . . 24 4 . . . . . Flight 2 | . . . . . . 14 15 15 21 2 Device 6 | . 7 14 9 . 7 11 15 15 12 3 Storage 9 | . 14 14 14 14 3 3 . . . . Processor 4 | . . . . . 10 4 13 21 18 14 Protection 4 | . . . 3 . 16 . . . . . Ballistic Gun 10 | . 24 23 25 10 . . . . . . Ballistic Cannon 4 | . . . . 3 11 . . . . . Launcher 1 | . . 4 1 . 4 . . . . . Impact Weapon 7 | . 3 . . 13 10 . . . . . Peak Build Rating 81 | 6 8 8 12 33 74 58 62 62 81 52 Average Rating 31 | 5 6 8 9 16 67 45 55 62 71 26 On Entrance 26 | . 6 8 8 12 30 2 52 62 62 53 Avg Prop Armor Cover (%) . | . . . . . . . . . . . Naked Turns 37 | . . . . . 31 6 . . . . Heaviest Build 99 | 13 30 31 33 59 99 22 21 21 29 35 Greatest Support 40 | 40 40 40 40 28 37 22 21 21 29 11 Greatest Overweight (x) 11 | . . . . 2 3 . . . 1 11 Average Overweight (x) . | . . . . 1 2 . . . . . Largest Inventory Capacity 25 | 8 15 15 15 25 25 5 5 5 5 5 Average Capacity 17 | 7 12 15 15 24 19 5 5 5 5 5 Most Carried 25 | 4 10 15 15 25 25 5 5 5 5 5 Average Carried 12 | 2 8 12 14 16 15 3 4 5 4 2 Final Capacity 25 | 8 15 15 15 25 5 5 5 5 5 5 Final Carried 22 | 4 10 15 15 22 5 4 5 5 5 1 Class Distribution -------------------- 62% | Mutant 24% | Derelict-Tank 9% | Derelict-Mutant Dominant Class ---------------- Mutant | -10/Materials Mutant | -10/Mines Mutant | -10/Subcaves Mutant | -7/Scraptown Derelict-Tank | -5/Factory Mutant | -4/Factory Mutant | -4/Upper Caves Derelict-Mutant | -4/Upper Caves Derelict-Sprinter | -3/Research Mutant | -3/Testing Resources | -11 -10 -10 -10 -7 -5 -4 -4 -4 -3 -3 ----------- Run | Yrd Mat Min Sub Scr Fac Fac Upp Upp Res Tes Matter Collected 1887 | 178 322 123 135 100 732 163 40 . 15 79 Remotely 124 | . . . . . 124 . . . . . Salvage Created 1403 | . 228 134 62 . 712 95 . . 24 148 Parts 79 | 2 24 8 3 . 27 6 . . 3 6 Haulers Intercepted 1 | . 1 . . . . . . . . . Recyclers Shooed 4 | . . . . . 2 1 . . . 1 Parts Field Recycled . | . . . . . . . . . . . Retrieved Matter . | . . . . . . . . . . . Parts Self-Destructed . | . . . . . . . . . . . Prevented . | . . . . . . . . . . . Parts Restored . | . . . . . . . . . . . Kills | -11 -10 -10 -10 -7 -5 -4 -4 -4 -3 -3 ------- Run | Yrd Mat Min Sub Scr Fac Fac Upp Upp Res Tes Combat Hostiles Destroyed 43 | . 9 5 2 . 18 4 . . . 5 Melee 1 | . 1 . . . . . . . . . Guns 6 | . 2 3 1 . . . . . . . Cannons 17 | . . . . . 12 4 . . . 1 AOE 18 | . 6 2 1 . 5 . . . . 4 Classes Destroyed 14 | 1 6 1 1 . 4 . . . . 1 Worker 4 | . 2 . . . 2 . . . . . Builder 3 | . . . . . 2 . . . . 1 Tunneler 2 | 1 1 . . . . . . . . . Hauler 1 | . 1 . . . . . . . . . Recycler 1 | . . 1 . . . . . . . . Operator 3 | . 1 . . . 1 . . . 1 . Watcher 2 | . 2 . . . . . . . . . Swarmer 16 | . 6 3 . . . 4 . . . 3 Grunt 11 | . 3 2 . . 6 . . . . . Researcher 1 | . . . . . . . . . . 1 Sentry 1 | . . . . . 1 . . . . . Hunter 6 | . . . . . 4 . . . . 2 Programmer 7 | . . . . . 7 . . . . . Subdweller 2 | . . . 2 . . . . . . . Best Kill Streak 5 | 1 5 3 1 . 4 4 . . 1 5 Combat Bots Only 4 | . 3 3 1 . 4 4 . . . 4 Max Kills in Single Turn 3 | 1 3 1 1 . 2 1 . . 1 3 Gunslinging . | . . . . . . . . . . . Exploded 3 | . 2 1 1 . 1 . . . . 3 Melee 1 | . 1 . . . . . . . . . Uniques/NPCs Destroyed . | . . . . . . . . . . . Combat | -11 -10 -10 -10 -7 -5 -4 -4 -4 -3 -3 -------- Run | Yrd Mat Min Sub Scr Fac Fac Upp Upp Res Tes Hostile Shots Fired 487 | . 24 16 22 . 142 41 5 2 65 170 Missed 188 | . 5 2 8 . 44 24 2 2 33 68 Hits 299 | . 19 14 14 . 98 17 3 . 32 102 Projectile 299 | . 19 14 14 . 98 17 3 . 32 102 Critical Strikes 12 | . . 1 . . 3 2 1 . 1 4 Damage Taken 5554 | . 213 138 385 . 2001 200 62 . 771 1784 Core 2022 | . 58 . 89 . 442 92 18 . 325 998 Absorbed by Shields . | . . . . . . . . . . . Ignored by Resistances 103 | . . . . . 34 69 . . . . Core Remaining (%) 71 | 100 . . . 41 55 . . 90 . . Volleys Fired 126 | . 20 11 14 . 46 13 2 . 9 11 Largest 3 | . 2 2 2 . 3 1 1 . 1 1 Hottest 134 | . 50 40 50 . 134 105 105 . 105 113 Shots Fired 211 | . 32 18 28 . 98 13 2 . 9 11 Gun 63 | . 24 14 25 . . . . . . . Cannon 122 | . . . . . 93 13 2 . 9 5 Launcher 26 | . 8 4 3 . 5 . . . . 6 Special . | . . . . . . . . . . . Kinetic 156 | . 24 14 25 . 93 . . . . . Thermal 29 | . . . . . . 13 2 . 9 5 Explosive 25 | . 8 4 3 . 5 . . . . 5 Electromagnetic 1 | . . . . . . . . . . 1 Robot Hit Streak 7 | . 6 3 7 . 4 4 . . 1 2 Robot Miss Streak 5 | . 4 4 4 . 5 2 . . 2 2 Penetration Max . | . . . . . . . . . . . Secondary Targets . | . . . . . . . . . . . Shots Hit Robots 104 | . 15 5 20 . 53 7 . . 2 2 Core Hits 92 | . 22 8 5 . 42 2 . . 2 11 Critical Kills . | . . . . . . . . . . . Critical Parts Destroyed 2 | . . . . . 2 . . . . . Critical Strikes 5 | . . . . . 5 . . . . . Blast 3 | . . . . . 3 . . . . . Smash 2 | . . . . . 2 . . . . . Melee Attacks 19 | . 4 . 1 . 14 . . . . . Impact 18 | . 4 . 1 . 13 . . . . . Slashing 1 | . . . . . 1 . . . . . Piercing . | . . . . . . . . . . . Sneak Attacks 2 | . 1 . . . 1 . . . . . Combat Hostiles . | . . . . . . . . . . . Follow-up Attacks 2 | . . . . . 2 . . . . . Damage Inflicted 5931 | 5 851 276 484 . 2669 252 . . 70 1324 Guns 409 | . 117 68 224 . . . . . . . Cannons 1815 | . . . . . 1423 252 . . 70 70 Explosions 3261 | . 579 198 260 . 970 . . . . 1254 Melee 418 | . 144 . . . 274 . . . . . Ramming 28 | 5 11 10 . . 2 . . . . . Kinetic 1832 | . 117 68 224 . 1423 . . . . . Thermal 540 | . . . . . 148 252 . . 70 70 Explosive 3008 | . 579 198 260 . 794 . . . . 1177 Electromagnetic 105 | . . . . . 28 . . . . 77 Impact 418 | . 144 . . . 274 . . . . . Slashing . | . . . . . . . . . . . Piercing . | . . . . . . . . . . . Highest Corruption 5 | . . . . . 1 . . . 5 5 Average Corruption 1 | . . . . . 1 . . . 2 5 Corruption Purged . | . . . . . . . . . . . Corruption Blocked . | . . . . . . . . . . . Effects 9 | . . . . . 4 . . . 3 2 Message Errors 1 | . . . . . 1 . . . . . Matter Fused 4 | . . . . . 1 . . . 1 2 Heat Flow Errors 3 | . . . . . 1 . . . 2 . Data Loss (minor) 1 | . . . . . 1 . . . . . Overload Shots . | . . . . . . . . . . . Overflow Damage 396 | . 54 . . . 159 25 . . . 158 Projectiles 44 | . . . . . . 25 . . . 19 Explosions 226 | . 7 . . . 80 . . . . 139 Melee 126 | . 47 . . . 79 . . . . . Knockbacks 9 | . . . . . 9 . . . . . Impact 2 | . . . . . 2 . . . . . Kinetic 7 | . . . . . 7 . . . . . Secondary . | . . . . . . . . . . . Self-Inflicted Damage 385 | . 37 . . . 289 . . . . 59 Shots 8 | . 2 . . . 4 . . . . 2 Rammed 5 | 1 1 1 . . 1 . . . . 1 Targets Rammed 8 | 2 2 2 . . 1 . . . . 1 Kicked . | . . . . . . . . . . . Crushed 3 | 1 1 1 . . . . . . . . Highest Temperature 389 | . 2 27 . . 364 294 45 . 273 389 Average Temperature 94 | . 2 20 . . 107 122 28 . 67 115 Received Heat Transfer 554 | . 51 54 57 . 207 9 12 . 70 94 Siege Activations . | . . . . . . . . . . . Martial Activations . | . . . . . . . . . . . Shielding Activations . | . . . . . . . . . . . Robots Disrupted . | . . . . . . . . . . . Combat Hostiles . | . . . . . . . . . . . Robots Corrupted 1 | . . . . . 1 . . . . . Combat Hostiles 1 | . . . . . 1 . . . . . Parts Fried 2 | . 1 . . . 1 . . . . . Impact Corruptions 4 | . 2 . . . 2 . . . . . Robots Melted . | . . . . . . . . . . . Combat Hostiles . | . . . . . . . . . . . Parts Melted . | . . . . . . . . . . . Heat Transferred 507 | . . . . . 100 259 . . 74 74 Parts Sabotaged . | . . . . . . . . . . . Parts Stolen . | . . . . . . . . . . . Parts Stripped . | . . . . . . . . . . . Power Chain Reactions . | . . . . . . . . . . . Alert | -11 -10 -10 -10 -7 -5 -4 -4 -4 -3 -3 ------- Run | Yrd Mat Min Sub Scr Fac Fac Upp Upp Res Tes Maximum Alert Level 3 | . . . . . 3 2 . . 1 1 Low Security (%) 57 | 100 100 100 . . 33 . . . 53 36 Level 1 8 | . . . . . 6 8 . . 46 63 Level 2 20 | . . . . . 28 91 . . . . Level 3 13 | . . . . . 31 . . . . . Level 4 . | . . . . . . . . . . . Level 5 . | . . . . . . . . . . . High Security . | . . . . . . . . . . . Max Security . | . . . . . . . . . . . Peak Influence 939 | 5 104 90 . . 939 498 . . 221 282 Initial 457 | . . 25 . . . 457 . . 159 132 Average 258 | . 35 30 . . 434 447 . . 182 209 Influence Increases 2647 | 5 351 130 . . 1383 171 60 . 257 290 Destroy 0b10 Robot/C 880 | . 180 100 . . 400 80 . . . 120 Destroy 0b10 Robot/NC 85 | 5 35 5 . . 30 . . . 5 5 Destroy Leader 178 | . 36 20 . . 102 10 . . . 10 Allied During Kill 44 | . . . . . 44 . . . . . Successful Hack 62 | . 41 . . . 12 . . . . 9 Disable Machine 390 | . . . . . 330 15 . . 15 30 Destroy Structure 573 | . 44 5 . . 420 6 . . 12 86 Partial Spotted 60 | . . . . . . 45 . . 15 . Lose Combat Pursuer 375 | . 15 . . . 45 15 60 . 210 30 Influence Decreases 2375 | 5 284 167 30 . 448 638 234 57 258 254 Entered New Map 949 | . . 42 16 . . 478 174 57 78 104 Time Decay 1112 | 5 230 125 14 . 368 150 60 . 100 60 Lost Part 240 | . . . . . 60 10 . . 80 90 Lost Ally 20 | . . . . . 20 . . . . . Purge Threat 54 | . 54 . . . . . . . . . Squads Dispatched 18 | . . . . . 7 3 . 1 4 3 Investigation 6 | . . . . . 2 2 . . 2 . Extermination 4 | . . . . . 3 . . . 1 . Reinforcement 6 | . . . . . 1 1 . . 1 3 Assault 2 | . . . . . 1 . . 1 . . Garrison . | . . . . . . . . . . . Intercept . | . . . . . . . . . . . Searches Triggered . | . . . . . . . . . . . Construction Impeded 1 | . . . . . . . . . . 1 Haulers Reinforced . | . . . . . . . . . . . Active Scanning Responses . | . . . . . . . . . . . Cargo Convoy Interrupts . | . . . . . . . . . . . Stealth | -11 -10 -10 -10 -7 -5 -4 -4 -4 -3 -3 --------- Run | Yrd Mat Min Sub Scr Fac Fac Upp Upp Res Tes Distress Signals 8 | . 3 . . . 2 . . . 1 2 Communications Jammed . | . . . . . . . . . . . Distress Signals . | . . . . . . . . . . . Times Spotted 147 | . 20 5 3 . 42 11 4 8 30 24 Peak Tracking Total 19 | . 4 3 2 . 15 4 4 9 19 16 Tactical Retreats 10 | . 1 . . . 1 1 2 . 4 1 Traps | -11 -10 -10 -10 -7 -5 -4 -4 -4 -3 -3 ------- Run | Yrd Mat Min Sub Scr Fac Fac Upp Upp Res Tes Traps Triggered 8 | . . . 1 . 3 1 . . 3 . Indirectly 2 | . . . . . 2 . . . . . Trap Hack Attempts . | . . . . . . . . . . . Triggered . | . . . . . . . . . . . Disarmed . | . . . . . . . . . . . Reprogrammed . | . . . . . . . . . . . Reused . | . . . . . . . . . . . Traps Extracted . | . . . . . . . . . . . Installed . | . . . . . . . . . . . Triggered . | . . . . . . . . . . . Machines | -11 -10 -10 -10 -7 -5 -4 -4 -4 -3 -3 ---------- Run | Yrd Mat Min Sub Scr Fac Fac Upp Upp Res Tes Machines Disabled 26 | . . . . . 22 1 . . 1 2 Max in Single Turn 6 | . . . . . 6 1 . . 1 1 Machines Repaired . | . . . . . . . . . . . Machines Dismantled . | . . . . . . . . . . . Machines Sabotaged . | . . . . . . . . . . . Overloaded Fab Kills . | . . . . . . . . . . . Hacking | -11 -10 -10 -10 -7 -5 -4 -4 -4 -3 -3 --------- Run | Yrd Mat Min Sub Scr Fac Fac Upp Upp Res Tes Machines Accessed 24 | . 7 . . 6 4 2 . . 2 3 Terminals 12 | . 7 . . . 2 . . . . 3 Fabricators . | . . . . . . . . . . . Repair Stations . | . . . . . . . . . . . Recycling Units 5 | . . . . . 1 2 . . 2 . Scanalyzers 1 | . . . . . 1 . . . . . Garrison Access . | . . . . . . . . . . . Total Hacks 92 | . 25 . . 49 9 2 . . 2 5 Successful 73 | . 13 . . 49 5 2 . . 2 2 Failed 19 | . 12 . . . 4 . . . . 3 Catastrophic 4 | . 1 . . . 1 . . . . 2 Database Lockouts . | . . . . . . . . . . . Manual 21 | . 13 . . . 4 2 . . 2 . Terminals 35 | . 25 . . . 5 . . . . 5 Fabricators . | . . . . . . . . . . . Repair Stations . | . . . . . . . . . . . Recycling Units 7 | . . . . . 3 2 . . 2 . Scanalyzers 1 | . . . . . 1 . . . . . Garrison Access . | . . . . . . . . . . . Terminal Hacks 61 | . 10 . . 49 . . . . . 2 Record 48 | . . . . 48 . . . . . . Part Schematic 1 | . . . . . . . . . . 1 Robot Analysis 1 | . 1 . . . . . . . . . Prototype ID Bank 2 | . 2 . . . . . . . . . Open Door 1 | . . . . . . . . . . 1 Level Access Points 1 | . 1 . . . . . . . . . Branch Access Points 1 | . 1 . . . . . . . . . Unreport Threat 2 | . 2 . . . . . . . . . Locate Traps 1 | . 1 . . . . . . . . . Hauler Manifests 1 | . 1 . . . . . . . . . Registered Components 1 | . 1 . . . . . . . . . Proto ID Catalog 1 | . . . . 1 . . . . . . Fabricator Hacks . | . . . . . . . . . . . Repair Station Hacks . | . . . . . . . . . . . Recycling Unit Hacks 2 | . . . . . 2 . . . . . Process 1 | . . . . . 1 . . . . . Retrieve Matter 1 | . . . . . 1 . . . . . Scanalyzer . | . . . . . . . . . . . Garrison Access Hacks . | . . . . . . . . . . . Unauthorized Hacks 10 | . 3 . . . 3 2 . . 2 . Terminals 5 | . 3 . . . 2 . . . . . Botnet 5 | . 3 . . . 2 . . . . . Fabricators . | . . . . . . . . . . . Repair Stations . | . . . . . . . . . . . Recycling Units 5 | . . . . . 1 2 . . 2 . Fedlink 5 | . . . . . 1 2 . . 2 . Scanalyzers . | . . . . . . . . . . . Garrison Access . | . . . . . . . . . . . Data Cores Recovered 1 | . 1 . . . . . . . . . Used . | . . . . . . . . . . . Hacking Detections 13 | . 7 . . . 4 . . . . 2 Full Trace Events . | . . . . . . . . . . . Feedback Events . | . . . . . . . . . . . Feedback Blocked . | . . . . . . . . . . . Robot Schematics Acquired . | . . . . . . . . . . . Robots Built . | . . . . . . . . . . . Authchips . | . . . . . . . . . . . Time . | . . . . . . . . . . . Total Robot Build Rating . | . . . . . . . . . . . Part Schematics Acquired 1 | . . . . . . . . . . 1 Parts Built . | . . . . . . . . . . . Authchips . | . . . . . . . . . . . Time . | . . . . . . . . . . . Total Part Build Rating . | . . . . . . . . . . . Part Studies Acquired . | . . . . . . . . . . . Parts Repaired . | . . . . . . . . . . . Time . | . . . . . . . . . . . Parts Recycled . | . . . . . . . . . . . Recycled Matter 84 | . . . . . 84 . . . . . Retrieved Matter 84 | . . . . . 84 . . . . . Retrieved Components . | . . . . . . . . . . . Parts Scanalyzed . | . . . . . . . . . . . Part Schematics Acquired . | . . . . . . . . . . . Parts Damaged . | . . . . . . . . . . . Bothacking | -11 -10 -10 -10 -7 -5 -4 -4 -4 -3 -3 ------------ Run | Yrd Mat Min Sub Scr Fac Fac Upp Upp Res Tes Used RIF Installer . | . . . . . . . . . . . Robots Hacked . | . . . . . . . . . . . Non-combat . | . . . . . . . . . . . Combat . | . . . . . . . . . . . Robot Hacks Applied . | . . . . . . . . . . . Relay Couplers Released . | . . . . . . . . . . . Fabnet Peak Effective % . | . . . . . . . . . . . Robots Rewired . | . . . . . . . . . . . Allies Hacked . | . . . . . . . . . . . Hacks Repelled . | . . . . . . . . . . . Allies | -11 -10 -10 -10 -7 -5 -4 -4 -4 -3 -3 -------- Run | Yrd Mat Min Sub Scr Fac Fac Upp Upp Res Tes Total Allies 1 | . . . . 1 . . . . . . Largest Group 1 | . . . . 1 1 . . . . . Highest-Rated Group 56 | . . . . 56 56 . . . . . Highest-Rated Ally 56 | . . . . 56 56 . . . . . Total Orders 3 | . . . . 3 . . . . . . STAY 1 | . . . . 1 . . . . . . FOLLOW 2 | . . . . 2 . . . . . . Ally Attacks 44 | . . . . . 44 . . . . . Total Damage 611 | . . . . . 611 . . . . . Kills 3 | . . . . . 3 . . . . . Allies Corrupted . | . . . . . . . . . . . Allies Melted . | . . . . . . . . . . . Intel | -11 -10 -10 -10 -7 -5 -4 -4 -4 -3 -3 ------- Run | Yrd Mat Min Sub Scr Fac Fac Upp Upp Res Tes Active Infowar (turns) 2035 | . 427 360 295 . 483 93 39 11 203 124 Optics 377 | . . . . . . . 39 11 203 124 Sensors 483 | . . . . . 483 . . . . . Structural 1082 | . 427 360 295 . . . . . . . Cloaking 6 | . . . . . . . . . . 6 Jamming 115 | . . . . . 21 93 . . 1 . ECM 1 | . . . . . . . . . 1 . Robot Analysis Total 1 | . 1 . . . . . . . . . Derelict Logs Recovered 3 | . . 1 1 . . . 1 . . . Drone Launches . | . . . . . . . . . . . Drone Recoveries . | . . . . . . . . . . . Exploration | -11 -10 -10 -10 -7 -5 -4 -4 -4 -3 -3 ------------- Run | Yrd Mat Min Sub Scr Fac Fac Upp Upp Res Tes Turns Passed 5668 | 112 782 360 446 1787 1420 302 121 11 203 124 Spaces Moved 4919 | 61 414 197 242 1547 893 568 289 29 507 172 Core 181 | 4 . . . . 61 10 . . . 106 Treads 910 | 57 414 197 242 . . . . . . . Legs . | . . . . . . . . . . . Wheels 2379 | . . . . 1547 832 . . . . . Hover . | . . . . . . . . . . . Flight 1449 | . . . . . . 558 289 29 507 66 Fastest Speed 27 | 50 160 160 160 105 50 39 39 39 27 32 Average Speed 99 | 152 160 160 160 110 130 40 39 39 29 46 Slowest Speed 600 | 160 160 160 160 130 145 50 39 39 107 600 Overloaded Moves . | . . . . . . . . . . . Propulsion Burnouts . | . . . . . . . . . . . Robots Hopped 35 | . . . . . . 12 1 1 20 1 Potential Cave-ins . | . . . . . . . . . . . Cave-ins Triggered . | . . . . . . . . . . . Exploration Rate (%) 35 | 4 69 49 18 88 22 19 61 10 18 30 Regions Visited 10 Branch Regions 6 Pre-discovered Areas 4 | . . . . 3 . 1 . . . . Known Exits Taken 5 | . 1 . . 1 1 . 1 . 1 . Unknown Exits Taken 5 | 1 . 1 1 . . 1 . 1 . . Scrap Searched 12 | . . 1 5 5 . . 1 . . . Spaces Dug 8 | . . . . . 2 1 1 . 4 . Terrain Destroyed 405 | . 62 8 26 . 229 3 2 . 6 69 Melee 2 | . . . . . 2 . . . . . Projectile 57 | . . . . . 45 3 2 . 6 1 AOE 346 | . 62 8 26 . 182 . . . . 68 Terrain Rammed . | . . . . . . . . . . . Walls Destroyed . | . . . . . . . . . . . Machines Disabled . | . . . . . . . . . . . Actions | -11 -10 -10 -10 -7 -5 -4 -4 -4 -3 -3 --------- Run | Yrd Mat Min Sub Scr Fac Fac Upp Upp Res Tes Total 5415 | 77 491 223 274 1640 1043 614 292 27 530 204 Wait 129 | 3 33 2 5 32 31 15 . . 2 6 Move 4844 | 60 413 196 241 1546 892 543 286 27 470 170 Hop 30 | . . . . . . 12 1 . 16 1 Pick Up 86 | 6 7 6 4 30 17 10 1 . 5 . Fast Attach 25 | 4 2 . . 1 2 7 2 . 4 3 Attach 36 | 2 . . 1 5 12 7 . . 4 5 Detach 7 | . . . . 4 . . . . 1 2 Swap 31 | . 8 4 3 3 10 2 . . . 1 Drop 64 | . 2 2 5 19 23 5 . . 4 4 Fire 126 | . 20 11 14 . 46 13 2 . 9 11 Melee 14 | . 4 . 1 . 9 . . . . . Ram 2 | . . . . . 1 . . . . 1 Kick . | . . . . . . . . . . . Crush 6 | 2 2 2 . . . . . . . . Escape Stasis 15 | . . . . . . . . . 15 . Rewire . | . . . . . . . . . . . Trap . | . . . . . . . . . . . Miscellaneous . | . . . . . . . . . . . Route ------- -11/Scrapyard -10/Materials (discovered 5 exits: *Mat x3 / *Min x2) -10/Mines (discovered 2 exits: *Mat / [*Sub]) -10/Subcaves (discovered 2 exits: *Mat / *Scr) -7/Scraptown (discovered 2 exits: *Fac x2) -5/Factory (discovered 2 exits: *Fac / Ext) -4/Factory -4/Upper Caves -4/Upper Caves (discovered 2 exits: *Res / Zhi) -3/Research (discovered 2 exits: *Tes x2) -3/Testing History --------- Turn | Location | Event 2 | -11/Scrapyard | Met Revision 17 11 | -11/Scrapyard | Discovered new exit (range 16) 113 | -11/Scrapyard | Entered Materials 215 | -10/Materials | Identified exit to Materials 314 | -10/Materials | Build established: Mutant 618 | -10/Materials | Identified exit to Mines 895 | -10/Materials | Entered Mines 897 | -10/Mines | Discovered exit to Materials (range 10) 902 | -10/Mines | Received a Rocket Launcher from a helpful Derelict 956 | -10/Mines | Learned Materials emergency access door positions 1197 | -10/Mines | Found DCF Scrap (13 items) 1215 | -10/Mines | Discovered new exit (range 12) 1255 | -10/Mines | Entered Subcaves 1255 | -10/Subcaves | Identified exit to Materials 1256 | -10/Subcaves | Approached by a straggling Scientist 1390 | -10/Subcaves | Shifting Twisted Machinery released Sub. Optics 1396 | -10/Subcaves | Shifting Twisted Machinery released Lgt. Humpback 1549 | -10/Subcaves | Disturbed a concealed Subdweller 1618 | -10/Subcaves | Core integrity fell below 50% 1668 | -10/Subcaves | Shifting Twisted Machinery released Flamer 1691 | -10/Subcaves | Shifting Twisted Machinery released Shrapnel Trap 1700 | -10/Subcaves | Scientist uncovered a shortcut to Scraptown 1701 | -10/Subcaves | Entered Scraptown 1904 | -7/Scraptown | Heard Great Nut preacher, LISTEN AND RECITE! 2015 | -7/Scraptown | Visited SPCMW 2032 | -7/Scraptown | Visited Spacefarers 2128 | -7/Scraptown | Visited Assassins FH 2164 | -7/Scraptown | Visited Shadow of the Wyrm 2342 | -7/Scraptown | Visited CPS Storage 2364 | -7/Scraptown | Visited Cave Peace 2400 | -7/Scraptown | Visited Cyclists 2430 | -7/Scraptown | Visited UFD Registry 2430 | -7/Scraptown | Registered with UFD as "Ioneater" 2454 | -7/Scraptown | Entered Cyclist Reading Room 2511 | -7/Scraptown | Visited Science Guys 2577 | -7/Scraptown | Visited Junk Cannon Lab 2600 | -7/Scraptown | Found Prototype Special Weapon 2752 | -7/Scraptown | Visited Research Penetration Think Tank 2778 | -7/Scraptown | Visited Derelict Rescue Squad 2784 | -7/Scraptown | Found DRS Beacon 2810 | -7/Scraptown | Visited Infowarlord's Domain 2818 | -7/Scraptown | Found Exp. Sensor Array 2830 | -7/Scraptown | Visited Cartography Club 2875 | -7/Scraptown | Found Surveybot 17 Chip 2932 | -7/Scraptown | Learned location of Upper Caves (-5) 2932 | -7/Scraptown | Learned 12 Materials zone layouts 2932 | -7/Scraptown | Learned 16 Materials zone layouts 2932 | -7/Scraptown | Learned 12 Factory zone layouts 2932 | -7/Scraptown | Learned 16 Research zone layouts 2932 | -7/Scraptown | Learned 4 Access zone layouts 2932 | -7/Scraptown | Learned 8 Lower Caves zone layouts 2932 | -7/Scraptown | Learned 8 Upper Caves zone layouts 2932 | -7/Scraptown | Learned 12 Proximity Caves zone layouts 2932 | -7/Scraptown | Learned 24 Proximity Caves zone layouts 2932 | -7/Scraptown | Learned 4 Armory zone layouts 2932 | -7/Scraptown | Learned Materials emergency access door positions 2932 | -7/Scraptown | Learned location of 1 exit from Lower Caves 2932 | -7/Scraptown | Learned location of 3 exits from Lower Caves 2932 | -7/Scraptown | Learned location of 2 exits from Upper Caves 2932 | -7/Scraptown | Identified exit to Factory 2971 | -7/Scraptown | Visited Sword Containment 2991 | -7/Scraptown | Visited DA-N13 Charitable Foundation 3005 | -7/Scraptown | Found DCF Scrap (27 items) 3029 | -7/Scraptown | Identified Junk Cannon 3111 | -7/Scraptown | Visited Botcube Research 3121 | -7/Scraptown | Found Lrg. Botcube 3155 | -7/Scraptown | Lrg. Botcube activated 3173 | -7/Scraptown | Lrg. Botcube completed mutation into treaded form, armed with 2 guns, 2 melee weapons. 3324 | -7/Scraptown | Build established: Derelict-Mutant 3401 | -7/Scraptown | Met Optimus 3401 | -7/Scraptown | Accepted into 0bPrime 3488 | -7/Scraptown | Entered Factory 3488 | -5/Factory | Accompanied by 1 ally 3488 | -5/Factory | Evolved 10 slots: Utility x6, Weapon x4 3489 | -5/Factory | Identified exit to Extension 3490 | -5/Factory | Identified exit to Factory 3773 | -5/Factory | Build established: Derelict-Tank 4404 | -5/Factory | Spotted B-75 Beast 4561 | -5/Factory | Loaded intel: 8 recycling unit locations 4688 | -5/Factory | First assault squad dispatched 4877 | -5/Factory | Released all parts (10) 4907 | -5/Factory | Lost 6 parts (3u3w) 4908 | -5/Factory | Entered another Factory area 4908 | -4/Factory | Evolved 2 slots: Power x1, Propulsion x1 5040 | -4/Factory | Loaded intel: 8 recycling unit locations 5040 | -4/Factory | Learned location of Protoforge (-2) 5174 | -4/Factory | Build established: Mutant 5175 | -4/Factory | Discovered new exit (range 7) 5210 | -4/Factory | Entered Upper Caves 5211 | -4/Upper Caves | Identified exit to Upper Caves 5307 | -4/Upper Caves | Learned Research interactive machine intel 5331 | -4/Upper Caves | Entered another Upper Caves area 5332 | -4/Upper Caves | Identified exit to Zhirov 5336 | -4/Upper Caves | Attracted the attention of an 0b10 outpost 5337 | -4/Upper Caves | Discovered new exit (range 16) 5342 | -4/Upper Caves | Entered Research 5342 | -3/Research | Evolved 2 slots: Propulsion x2 5343 | -3/Research | Identified exit to Testing 5344 | -3/Research | Loaded intel: 47 interactive machine locations 5368 | -3/Research | Loaded intel: 5 recycling unit locations 5545 | -3/Research | Entered Testing 5559 | -3/Testing | Lost 8 parts (1p4n3u) 5587 | -3/Testing | Found Prototype Launcher 5587 | -3/Testing | Identified Adv. Micro-nuke Launcher 5594 | -3/Testing | Scanned by Researcher 5600 | -3/Testing | Found Prototype Launcher 5600 | -3/Testing | Identified Tesla Bomb Launcher 5607 | -3/Testing | Core integrity fell below 50% 5643 | -3/Testing | Core integrity fell below 20% 5647 | -3/Testing | Lost 9 parts (1p2n4u2w) 5669 | -3/Testing | Destroyed by H-77 Assassin with Coil Gun Last Messages --------------- 05628_ U-05 Engineer builds a Wall. 05628_ U-05 Engineer lays Concrete. 05628_ Slug penetrates Wall. 05629_ U-05 Engineer builds a Wall. 05629_ U-05 Engineer lays Concrete. 05630_ Wall collapses. 05630_ U-05 Engineer builds a Wall. 05631_ Penetrated by Slug. 05631_ U-05 Engineer suffers critical hit (Destroy). 05635_ Slug penetrates Wall. 05637_ Acquired 79 matter. 05642_ Slug penetrates Wall. 05642_ Critical hit (Burn: +50). 05650_ W-44 Eye sends out distress signal. 05664_ Drone sends a signal. 05665_ Slug penetrates Machine. 05668_ ALERT: Terrabomb reconfiguration apparatus unstable. Structure dematerialization imminent. 05668_ Slammed into G-67 Veteran. 05669_ Penetrated by Slug. Map ----- +----------------------------------------------------+ | "#?????####???##????????????????????????????????? | | #?????# ??? ????????????????????????????????? | | #?????# [??? ""???????????????????????????????? | | T#?????# [??? """??????????????????????????????? | | #?????# """ #????????????????????????????? | | ######### #????????????????????????????? | | ## ! """ """ #????????????????????????????? | | """ ## """ """ #????????????????????????????? | | ""T"" ?# """ """ #????????????????????????????? | | "" "" ## ###########??????????????????? | | ## """ """ # #??????????????????? | | ## """ """ # #??????????????????? | | ## """ """ # #??????????????????? | | ######### # #??????????????????? | | ############"#+###### """ #??????????????????? | | #???# "?" #??????????????????? | | #???# """ #??????????????????? | | ##### gg #??????????????????? | | + " #??????????????????? | | # ggg""" #??????????????????? | | # g"""g#??????????????????? | | # """ #??????????????????? | | + #??????????????????? | | # #??????????????????? | | ######### ### # h #??????????????????? | | ????????# #?# # @g #??????????????????? | | ????????# #?# #####g#####??????????????????? | | ????????# #?# ?? ??????????????????????? | | ????????# #?# ?????????????????????? | | ????????# #?# ????????????????????? | | ????????# #?# ????????????????????? | | ????????# #?## ##### ###???????????????????? | | ????????# #??# #???# #?????????????????????? | | #???????# #??# #???# #?????????????????????? | | #???????# #??# #???# #?????????????????????? | | #???????+ #??# #???# #?????????????????????? | | #???????? ???#+#???# #?????????????????????? | | #?????????????????????# #?????????????????????? | | #?????????????????????# #?????????????????????? | | #?????????????????????# #?????????????????????? | | #?????????????????????# #?????????????????????? | | ??????????????????????+ #?????????????????????? | | ??????????????????????# #?????????????????????? | | ??????????????????????# ??????????????????????? | | ??????????????????????# ??????????????????????? | | ??????????????????????? ??????????????????????? | | ??????????????????????? ??????????????????????? | | ?????????????????????????????????????????????????? | | ?????????????????????????????????????????????????? | | ?????????????????????????????????????????????????? | +----------------------------------------------------+ Best States ------------- Heat Dissipation 54 Energy Generation 35 Energy Capacity 340 Matter Stores 300 Matter Capacity 300 Sight Range 22 Robot Scan Range 20 Terrain Scan Density 210 Jamming Range 14 Cloak Strength 2 Power Amplification 30 Additional Mass Support 9 Armor Coverage 625 Resistance: KI 25 Resistance: TH 30 Evasion (%) 64 Targeting Accuracy 6 Melee Accuracy 8 Core Analysis 6 Recoil Reduction 2 Offensive Hacking 12 Item Schematics ----------------- Lgt. Regenerative Plating | -3/Testing | Hacked Robot Schematics ------------------ None Fabricated ------------ Nothing Repaired ---------- Nothing Studied --------- None Alien Tech Used ----------------- None Achievements -------------- Frankenstein Into The Breach Quantum Hacking You Again Challenges ------------ None Game ------ Seed XenonExperimentalHumpback Manual? 0 Play Time 01:46:01 Cumulative 66.4 hours Start 2026.02.04 @ 20:05:12 End 2026.02.04 @ 21:57:02 Sessions 1 Manual Loads 0 Difficulty Rogue Special Mode None Game No. 47 Rogue 47 Adventurer 0 Explorer 0 Win Type - Total 3 Types 3/0/0/0/0/0/0/0/0/0 Lore% 33 Gallery% 41 Achievement% 30 Wizard Run 0 Options --------- Layout 0 ASCII 0 Keyboard 0 Movement Numpad Keybinds 0 Fullscreen 2 Font 24/Terminus Map View 76x50 Zoom Use 0% Tactical HUD 1 Map Filters NONE Filters NONE Steam 1 RUN: 1ab9b1df-64de-4176-9411-3dcea2a2755a